Workbook

Sheet 开始
B1: 模板简介
B2: 使用此“活动预算”工作簿跟踪活动产生的支出以及获得的收益。
B3: 在表中的“支出”工作表和“收益”工作表填写活动名称并输入详细信息。
B4: 总支出和总收益将会自动计算。
B5: “损益汇总”工作表中的损益汇总和图表将会自动更新。
B6: 注释：
B7: 每个工作表的 A 列中均提供了额外的说明。并且此文本已被有意隐藏。若要删除文本，请选择 A 列，然后选择“删除”。
B8: 若要了解有关表格的详细信息，请在表格内按 Shift + F10，选择“表格”选项，然后选择“替换文本”

Sheet 支出
A1: 在此工作表的相应表格中输入每个类别的估算金额和实际费用，并在单元格 D1 中输入活动名称，以自定义此工作表和其他工作表的标题。此工作表的副标题位于单元格 H1 中。有关如何使用此工作表的有用说明位于此列的单元格中。下一条说明位于单元格 A3 中。 | B1: 活动预算 | D1: 活动名称 | H1: 支出
A3: 总支出位于右侧单元格中，估计支出标签位于单元格 G3 中，实际支出标签位于单元格 H3 中。 | B3: 费用总计 | G3: 估计 | H3: 实际
A4: 单元格 G4 中的估计总支出和单元格 H4 中的实际总支出将会自动计算。下一条说明位于单元格 A6 中。 | G4: =SUM(C11,C19,C25,C32,G11,G19,G24) -> ¥882.00 | H4: =SUM(D11,D19,D25,D32,H11,H19,H24) -> ¥302.00
A6: 在表中右侧单元格开始输入场地支出，在表中单元格 F6 开始输入茶点支出。下一条指示位于单元格 A13 中。 | B6: 场地 | C6: 估计 | D6: 实际费用 | F6: 茶点 | G6: 估计 | H6: 实际
B7: 会议室和大厅费用 | C7: ¥500.00 | F7: 食物
B8: 现场人员 | F8: 饮料 | G8: ¥20.00
B9: 设备 | F9: 亚麻布 | H9: ¥20.00
B10: 桌椅 | F10: 服务人员和小费
B11: 汇总 | C11: =SUBTOTAL(109,SiteExpenses[估计]) -> ¥500.00 | D11: =SUBTOTAL(103,SiteExpenses[实际费用]) -> ¥0.00 | F11: 汇总 | G11: =SUBTOTAL(109,RefreshmentsExpenses[估计]) -> ¥20.00 | H11: =SUBTOTAL(103,RefreshmentsExpenses[实际]) -> ¥1.00
A13: 在表中右侧单元格开始输入装饰支出，在表中单元格 F13 开始输入节目支出。下一条说明位于单元格 A21 中。 | B13: 装饰 | C13: 估计 | D13: 实际 | F13: 节目 | G13: 估计 | H13: 实际
B14: 花卉 | C14: ¥200.00 | D14: ¥300.00 | F14: 执行者
B15: 蜡烛 | F15: 扬声器 | G15: ¥30.00
B16: 照明 | F16: 差旅
B17: 气球 | F17: 住宿
B18: 纸 | F18: 其他
B19: 汇总 | C19: =SUBTOTAL(109,DecorationsExpenses[估计]) -> ¥200.00 | D19: =SUBTOTAL(109,DecorationsExpenses[实际]) -> ¥300.00 | F19: 汇总 | G19: =SUBTOTAL(109,ProgramExpenses[估计]) -> ¥30.00 | H19: =SUBTOTAL(103,ProgramExpenses[实际]) -> ¥0.00
A21: 在表中右侧单元格开始输入宣传支出，在表中单元格 F21 开始输入奖励支出。下一条说明位于单元格 A27 中 | B21: 宣传 | C21: 估计 | D21: 实际 | F21: 奖品 | G21: 估计 | H21: 实际
B22: 图形工作 | F22: 绶带/奖章/奖品
B23: 影印/打印 | C23: ¥20.00 | F23: 礼品 | G23: ¥100.00
B24: 邮费 | F24: 汇总 | G24: =SUBTOTAL(109,PrizesExpenses[估计]) -> ¥100.00 | H24: =SUBTOTAL(103,PrizesExpenses[实际]) -> ¥0.00
B25: 汇总 | C25: =SUBTOTAL(109,PublicityExpenses[估计]) -> ¥20.00 | D25: =SUBTOTAL(103,PublicityExpenses[实际]) -> ¥0.00
A27: 在表中右侧单元格开始输入杂项费用。 | B27: 杂项 | C27: 估算金额 | D27: 实际
B28: 电话 | D28: ¥13.00
B29: 交通 | C29: ¥12.00
B30: 文具
B31: 传真服务
B32: 汇总 | C32: =SUBTOTAL(109,MiscellaneousExpenses[估算金额]) -> ¥12.00 | D32: =SUBTOTAL(103,MiscellaneousExpenses[实际]) -> ¥1.00

Sheet 收入
A1: 在此工作表的相应表中输入每个类别的估计收益和实际收益。单元格右侧的工作表标题将会自动更新。副标题位于单元格 G1 中。有关如何使用此工作表的有用说明位于此列的单元格中。下一条说明位于单元格 A3 中。 | B1: =支出!B1 -> 活动预算 | D1: =支出!D1 -> 活动名称 | G1: 收入
A3: 总收益位于右侧单元格中，估计收益标签位于单元格 F3 中，实际收益标签位于单元格 G3 中。 | B3: 总收益 | F3: 估计 | G3: 实际
A4: 单元格 F4 中的估计总收益和单元格 G4 中的实际收益将会自动计算。 | F4: =SUM(Admissions[[#Totals],[估计收益]],AdsInProgram[[#Totals],[估计收益]],ExhibitorsAndVendors[[#Totals],[估计收益]],SaleOfItems[[#Totals],[估计收益]]) -> ¥1,936.00 | G4: =SUM(Admissions[[#Totals],[实际收益]],AdsInProgram[[#Totals],[实际收益]],ExhibitorsAndVendors[[#Totals],[实际收益]],SaleOfItems[[#Totals],[实际收益]]) -> ¥1,831.00
A5: 入场券收益标签位于右侧单元格中。 | B5: 入场券
A6: 在表中的右侧单元格开始输入估计的入场券数量和实际的入场券数量以及票价。估计的入场券收益和实际的入场券收益将会自动计算。下一条说明位于单元格 A11 中。 | B6: 估计数量 | C6: 实际数量 | D6: 类型 | E6: 价格 | F6: 估计收益 | G6: 实际收益
B7: 300 | C7: 278 | D7: 成人数量 | E7: ¥5.00 | F7: =B7*E7 -> ¥1,500.00 | G7: =C7*E7 -> ¥1,390.00
B8: 197 | C8: 195 | D8: 儿童数量 | E8: ¥2.00 | F8: =B8*E8 -> ¥394.00 | G8: =C8*E8 -> ¥390.00
B9: 42 | C9: 51 | D9: 其他数量 | E9: ¥1.00 | F9: =B9*E9 -> ¥42.00 | G9: =C9*E9 -> ¥51.00
B10: 汇总 | F10: =SUBTOTAL(109,Admissions[估计收益]) -> ¥1,936.00 | G10: =SUBTOTAL(109,Admissions[实际收益]) -> ¥1,831.00
A11: 节目广告收益标签位于右侧单元格中。 | B11: 节目广告
A12: 在表中的右侧单元格开始输入估计的节目广告数量和实际的节目广告数量以及广告价格。估计的广告收益和实际的广告收益将会自动计算。下一条说明位于单元格 A17 中。 | B12: 估计数量 | C12: 实际数量 | D12: 类型 | E12: 价格 | F12: 估计收益 | G12: 实际收益
B13: 12 | D13: 封面数量 | F13: =B13*E13 -> ¥0.00 | G13: =C13*E13 -> ¥0.00
C14: 158 | D14: 半版数量 | F14: =B14*E14 -> ¥0.00 | G14: =C14*E14 -> ¥0.00
B15: 4 | D15: 四分之一版面数量 | F15: =B15*E15 -> ¥0.00 | G15: =C15*E15 -> ¥0.00
B16: 汇总 | F16: =SUBTOTAL(109,AdsInProgram[估计收益]) -> ¥0.00 | G16: =SUBTOTAL(109,AdsInProgram[实际收益]) -> ¥0.00
A17: 参展商或供应商收益标签位于右侧单元格。 | B17: 参展商/供应商
A18: 在表中的右侧单元格开始输入估计的参展商和供应商数量和实际的参展商和供应商数量以及展厅价格。估计收益和实际收益将会自动计算。下一条指示位于单元格 A23 中。 | B18: 估计数量 | C18: 实际数量 | D18: 类型 | E18: 价格 | F18: 估计收益 | G18: 实际收益
B19: 23 | D19: 大型展厅数量 | F19: =B19*E19 -> ¥0.00 | G19: =C19*E19 -> ¥0.00
B20: 354 | D20: 中型展厅数量 | F20: =B20*E20 -> ¥0.00 | G20: =C20*E20 -> ¥0.00
B21: 56 | D21: 小型展厅数量 | F21: =B21*E21 -> ¥0.00 | G21: =C21*E21 -> ¥0.00
B22: 汇总 | F22: =SUBTOTAL(109,ExhibitorsAndVendors[估计收益]) -> ¥0.00 | G22: =SUBTOTAL(109,ExhibitorsAndVendors[实际收益]) -> ¥0.00
A23: 产品销售收益标签位于右侧单元格中。 | B23: 产品销售
A24: 在表中的右侧单元格开始输入估计的产品销售量和实际的产品销售量以及产品价格。估计收益和实际收益将会自动计算。 | B24: 估计数量 | C24: 实际数量 | D24: 类型 | E24: 价格 | F24: 估计收益 | G24: 实际收益
D25: 产品储量 | F25: =B25*E25 -> ¥0.00 | G25: =C25*E25 -> ¥0.00
B26: 123 | D26: 产品储量 | F26: =B26*E26 -> ¥0.00 | G26: =C26*E26 -> ¥0.00
D27: 产品储量 | F27: =B27*E27 -> ¥0.00 | G27: =C27*E27 -> ¥0.00
B28: 13 | D28: 产品储量 | F28: =B28*E28 -> ¥0.00 | G28: =C28*E28 -> ¥0.00
B29: 汇总 | F29: =SUBTOTAL(109,SaleOfItems[估计收益]) -> ¥0.00 | G29: =SUBTOTAL(109,SaleOfItems[实际收益]) -> ¥0.00

Sheet 损益表汇总
A1: 此工作表中显示总收益和支出的损益汇总和图表将会自动更新。单元格右侧的工作表标题将会自动更新。副标题位于单元格 G1 和 G2 中。有关如何使用此工作表的有用说明位于此列的单元格中。下一条说明位于单元格 A3 中。 | B1: =支出!B1 -> 活动预算 | D1: =支出!D1 -> 活动名称 | G1: 利润
G2: 损失汇总
A3: 比较估计收益和支出与实际收益和支出的条形图位于单元格 E3 中。 | E3: 比较估计收益和支出与实际收益和支出的条形图位于此单元格中。
A4: 从右侧单元格开始的汇总表将会自动更新。下一条指示位于单元格 A8 中。 | B4: 总计 | C4: 估算金额 | D4: 实际
B5: 总收益 | C5: =收入!F10 -> ¥1,936.00 | D5: =收入!F4 -> ¥1,936.00
B6: 费用总计 | C6: =支出!G4 -> ¥882.00 | D6: =支出!H4 -> ¥302.00
A8: 单元格 C8 中的估计总损益和单元格 D8 中的实际总损益将会自动计算。 | B8: 总利润 （或损失） | C8: =C5-C6 -> ¥1,054.00 | D8: =D5-D6 -> ¥1,634.00
